Workbook

Sheet Andmesisestus
J1: =365*2 -> 730
B2: KUUS ANDMESISESTUS
L3: KOGUSUMMAD | O3: PROGNOOS
B5: KUUPÄEV | C5: ETTEVÕTE | D5: SUMMA | E5: PLAANITUD | F5: KULU | G5: TULU | H5: KUU | I5: KVARTAL | J5: AASTA | K5: KUU NR (PEIDA) | L5: KUU | M5: KVARTAL | N5: AASTAS | O5: KUU | P5: KVARTAL | Q5: AASTA
B6: =40657+(365*2) -> 2013-04-23 | C6: A. Datum Corporation | D6: 6,400.00 € | E6: 6,200.00 € | F6: 4,450.00 € | G6: =tblAndmed[[#This Row],[SUMMA]]-tblAndmed[KULU] -> 1,950.00 € | H6: =DATE(YEAR(Andmesisestus!$B6),MONTH(Andmesisestus!$B6),1) -> 2013-04-01 | I6: =LOOKUP(MONTH(Andmesisestus!$H6),{1,1;2,1;3,1;4,2;5,2;6,2;7,3;8,3;9,3;10,4;11,4;12,4}) -> Kvartal 2 | J6: =YEAR(Andmesisestus!$B6) -> 2013 | K6: =MONTH(tblAndmed[[#This Row],[KUUPÄEV]]) -> 4 | L6: =SUMIFS(tblAndmed[SUMMA],tblAndmed[KUUPÄEV],">="&EOMONTH(tblAndmed[[#This Row],[KUUPÄEV]],-1)+1,tblAndmed[KUUPÄEV],"<="&EOMONTH(tblAndmed[[#This Row],[KUUPÄEV]],0)) -> 14,600.00 € | M6: =SUMIFS(tblAndmed[SUMMA],tblAndmed[KUUPÄEV],">="&DATE(YEAR(tblAndmed[KUUPÄEV]),1,1),tblAndmed[KUUPÄEV],"<="&DATE(YEAR(tblAndmed[KUUPÄEV]),12,31),tblAndmed[KVARTAL],tblAndmed[KVARTAL]) -> 50,800.00 € | N6: =SUMIFS(tblAndmed[SUMMA],tblAndmed[KUUPÄEV],">="&DATE(YEAR(tblAndmed[KUUPÄEV]),1,1),tblAndmed[KUUPÄEV],"<="&DATE(YEAR(tblAndmed[KUUPÄEV]),12,31)) -> 143,800.00 € | O6: =IFERROR(TREND($L$6:INDEX($L:$L,ROW(),1),$K$6:INDEX($K:$K,ROW(),1),IF(MONTH(tblAndmed[[#This Row],[KUUPÄEV]])=12,13,MONTH(tblAndmed[[#This Row],[KUUPÄEV]])+1)),"") -> 14,600.00 € | P6: =IFERROR(TREND($M$6:INDEX($M:$M,ROW(),1),$I$6:INDEX($I:$I,ROW(),1),IF(tblAndmed[KVARTAL]=4,5,tblAndmed[KVARTAL]+1)),"") -> 50,800.00 € | Q6: =IFERROR(TREND($N$6:INDEX($N:$N,ROW(),1),$J$6:INDEX($J:$J,ROW(),1),tblAndmed[AASTA]+1),"") -> 143,800.00 €
B7: =40659+(365*2) -> 2013-04-25 | C7: Contoso Pharmaceuticals | D7: 8,200.00 € | E7: 8,000.00 € | F7: 6,400.00 € | G7: =tblAndmed[[#This Row],[SUMMA]]-tblAndmed[KULU] -> 1,800.00 € | H7: =DATE(YEAR(Andmesisestus!$B7),MONTH(Andmesisestus!$B7),1) -> 2013-04-01 | I7: =LOOKUP(MONTH(Andmesisestus!$H7),{1,1;2,1;3,1;4,2;5,2;6,2;7,3;8,3;9,3;10,4;11,4;12,4}) -> Kvartal 2 | J7: =YEAR(Andmesisestus!$B7) -> 2013 | K7: =MONTH(tblAndmed[[#This Row],[KUUPÄEV]]) -> 4 | L7: =SUMIFS(tblAndmed[SUMMA],tblAndmed[KUUPÄEV],">="&EOMONTH(tblAndmed[[#This Row],[KUUPÄEV]],-1)+1,tblAndmed[KUUPÄEV],"<="&EOMONTH(tblAndmed[[#This Row],[KUUPÄEV]],0)) -> 14,600.00 € | M7: =SUMIFS(tblAndmed[SUMMA],tblAndmed[KUUPÄEV],">="&DATE(YEAR(tblAndmed[KUUPÄEV]),1,1),tblAndmed[KUUPÄEV],"<="&DATE(YEAR(tblAndmed[KUUPÄEV]),12,31),tblAndmed[KVARTAL],tblAndmed[KVARTAL]) -> 50,800.00 € | N7: =SUMIFS(tblAndmed[SUMMA],tblAndmed[KUUPÄEV],">="&DATE(YEAR(tblAndmed[KUUPÄEV]),1,1),tblAndmed[KUUPÄEV],"<="&DATE(YEAR(tblAndmed[KUUPÄEV]),12,31)) -> 143,800.00 € | O7: =IFERROR(TREND($L$6:INDEX($L:$L,ROW(),1),$K$6:INDEX($K:$K,ROW(),1),IF(MONTH(tblAndmed[[#This Row],[KUUPÄEV]])=12,13,MONTH(tblAndmed[[#This Row],[KUUPÄEV]])+1)),"") -> 14,600.00 € | P7: =IFERROR(TREND($M$6:INDEX($M:$M,ROW(),1),$I$6:INDEX($I:$I,ROW(),1),IF(tblAndmed[KVARTAL]=4,5,tblAndmed[KVARTAL]+1)),"") -> 50,800.00 € | Q7: =IFERROR(TREND($N$6:INDEX($N:$N,ROW(),1),$J$6:INDEX($J:$J,ROW(),1),tblAndmed[AASTA]+1),"") -> 143,800.00 €
B8: =40671+(365*2) -> 2013-05-07 | C8: Consolidated Messenger | D8: 4,400.00 € | E8: 4,200.00 € | F8: 2,600.00 € | G8: =tblAndmed[[#This Row],[SUMMA]]-tblAndmed[KULU] -> 1,800.00 € | H8: =DATE(YEAR(Andmesisestus!$B8),MONTH(Andmesisestus!$B8),1) -> 2013-05-01 | I8: =LOOKUP(MONTH(Andmesisestus!$H8),{1,1;2,1;3,1;4,2;5,2;6,2;7,3;8,3;9,3;10,4;11,4;12,4}) -> Kvartal 2 | J8: =YEAR(Andmesisestus!$B8) -> 2013 | K8: =MONTH(tblAndmed[[#This Row],[KUUPÄEV]]) -> 5 | L8: =SUMIFS(tblAndmed[SUMMA],tblAndmed[KUUPÄEV],">="&EOMONTH(tblAndmed[[#This Row],[KUUPÄEV]],-1)+1,tblAndmed[KUUPÄEV],"<="&EOMONTH(tblAndmed[[#This Row],[KUUPÄEV]],0)) -> 21,800.00 € | M8: =SUMIFS(tblAndmed[SUMMA],tblAndmed[KUUPÄEV],">="&DATE(YEAR(tblAndmed[KUUPÄEV]),1,1),tblAndmed[KUUPÄEV],"<="&DATE(YEAR(tblAndmed[KUUPÄEV]),12,31),tblAndmed[KVARTAL],tblAndmed[KVARTAL]) -> 50,800.00 € | N8: =SUMIFS(tblAndmed[SUMMA],tblAndmed[KUUPÄEV],">="&DATE(YEAR(tblAndmed[KUUPÄEV]),1,1),tblAndmed[KUUPÄEV],"<="&DATE(YEAR(tblAndmed[KUUPÄEV]),12,31)) -> 143,800.00 € | O8: =IFERROR(TREND($L$6:INDEX($L:$L,ROW(),1),$K$6:INDEX($K:$K,ROW(),1),IF(MONTH(tblAndmed[[#This Row],[KUUPÄEV]])=12,13,MONTH(tblAndmed[[#This Row],[KUUPÄEV]])+1)),"") -> 29,000.00 € | P8: =IFERROR(TREND($M$6:INDEX($M:$M,ROW(),1),$I$6:INDEX($I:$I,ROW(),1),IF(tblAndmed[KVARTAL]=4,5,tblAndmed[KVARTAL]+1)),"") -> 50,800.00 € | Q8: =IFERROR(TREND($N$6:INDEX($N:$N,ROW(),1),$J$6:INDEX($J:$J,ROW(),1),tblAndmed[AASTA]+1),"") -> 143,800.00 €
B9: =40678+(365*2) -> 2013-05-14 | C9: Proseware, Inc. | D9: 5,400.00 € | E9: 5,500.00 € | F9: 4,500.00 € | G9: =tblAndmed[[#This Row],[SUMMA]]-tblAndmed[KULU] -> 900.00 € | H9: =DATE(YEAR(Andmesisestus!$B9),MONTH(Andmesisestus!$B9),1) -> 2013-05-01 | I9: =LOOKUP(MONTH(Andmesisestus!$H9),{1,1;2,1;3,1;4,2;5,2;6,2;7,3;8,3;9,3;10,4;11,4;12,4}) -> Kvartal 2 | J9: =YEAR(Andmesisestus!$B9) -> 2013 | K9: =MONTH(tblAndmed[[#This Row],[KUUPÄEV]]) -> 5 | L9: =SUMIFS(tblAndmed[SUMMA],tblAndmed[KUUPÄEV],">="&EOMONTH(tblAndmed[[#This Row],[KUUPÄEV]],-1)+1,tblAndmed[KUUPÄEV],"<="&EOMONTH(tblAndmed[[#This Row],[KUUPÄEV]],0)) -> 21,800.00 € | M9: =SUMIFS(tblAndmed[SUMMA],tblAndmed[KUUPÄEV],">="&DATE(YEAR(tblAndmed[KUUPÄEV]),1,1),tblAndmed[KUUPÄEV],"<="&DATE(YEAR(tblAndmed[KUUPÄEV]),12,31),tblAndmed[KVARTAL],tblAndmed[KVARTAL]) -> 50,800.00 € | N9: =SUMIFS(tblAndmed[SUMMA],tblAndmed[KUUPÄEV],">="&DATE(YEAR(tblAndmed[KUUPÄEV]),1,1),tblAndmed[KUUPÄEV],"<="&DATE(YEAR(tblAndmed[KUUPÄEV]),12,31)) -> 143,800.00 € | O9: =IFERROR(TREND($L$6:INDEX($L:$L,ROW(),1),$K$6:INDEX($K:$K,ROW(),1),IF(MONTH(tblAndmed[[#This Row],[KUUPÄEV]])=12,13,MONTH(tblAndmed[[#This Row],[KUUPÄEV]])+1)),"") -> 29,000.00 € | P9: =IFERROR(TREND($M$6:INDEX($M:$M,ROW(),1),$I$6:INDEX($I:$I,ROW(),1),IF(tblAndmed[KVARTAL]=4,5,tblAndmed[KVARTAL]+1)),"") -> 50,800.00 € | Q9: =IFERROR(TREND($N$6:INDEX($N:$N,ROW(),1),$J$6:INDEX($J:$J,ROW(),1),tblAndmed[AASTA]+1),"") -> 143,800.00 €
B10: =40678+(365*2) -> 2013-05-14 | C10: School of Fine Art | D10: 5,800.00 € | E10: 6,000.00 € | F10: 4,500.00 € | G10: =tblAndmed[[#This Row],[SUMMA]]-tblAndmed[KULU] -> 1,300.00 € | H10: =DATE(YEAR(Andmesisestus!$B10),MONTH(Andmesisestus!$B10),1) -> 2013-05-01 | I10: =LOOKUP(MONTH(Andmesisestus!$H10),{1,1;2,1;3,1;4,2;5,2;6,2;7,3;8,3;9,3;10,4;11,4;12,4}) -> Kvartal 2 | J10: =YEAR(Andmesisestus!$B10) -> 2013 | K10: =MONTH(tblAndmed[[#This Row],[KUUPÄEV]]) -> 5 | L10: =SUMIFS(tblAndmed[SUMMA],tblAndmed[KUUPÄEV],">="&EOMONTH(tblAndmed[[#This Row],[KUUPÄEV]],-1)+1,tblAndmed[KUUPÄEV],"<="&EOMONTH(tblAndmed[[#This Row],[KUUPÄEV]],0)) -> 21,800.00 € | M10: =SUMIFS(tblAndmed[SUMMA],tblAndmed[KUUPÄEV],">="&DATE(YEAR(tblAndmed[KUUPÄEV]),1,1),tblAndmed[KUUPÄEV],"<="&DATE(YEAR(tblAndmed[KUUPÄEV]),12,31),tblAndmed[KVARTAL],tblAndmed[KVARTAL]) -> 50,800.00 € | N10: =SUMIFS(tblAndmed[SUMMA],tblAndmed[KUUPÄEV],">="&DATE(YEAR(tblAndmed[KUUPÄEV]),1,1),tblAndmed[KUUPÄEV],"<="&DATE(YEAR(tblAndmed[KUUPÄEV]),12,31)) -> 143,800.00 € | O10: =IFERROR(TREND($L$6:INDEX($L:$L,ROW(),1),$K$6:INDEX($K:$K,ROW(),1),IF(MONTH(tblAndmed[[#This Row],[KUUPÄEV]])=12,13,MONTH(tblAndmed[[#This Row],[KUUPÄEV]])+1)),"") -> 29,000.00 € | P10: =IFERROR(TREND($M$6:INDEX($M:$M,ROW(),1),$I$6:INDEX($I:$I,ROW(),1),IF(tblAndmed[KVARTAL]=4,5,tblAndmed[KVARTAL]+1)),"") -> 50,800.00 € | Q10: =IFERROR(TREND($N$6:INDEX($N:$N,ROW(),1),$J$6:INDEX($J:$J,ROW(),1),tblAndmed[AASTA]+1),"") -> 143,800.00 €
B11: =40693+(365*2) -> 2013-05-29 | C11: Trey Research | D11: 6,200.00 € | E11: 6,000.00 € | F11: 4,500.00 € | G11: =tblAndmed[[#This Row],[SUMMA]]-tblAndmed[KULU] -> 1,700.00 € | H11: =DATE(YEAR(Andmesisestus!$B11),MONTH(Andmesisestus!$B11),1) -> 2013-05-01 | I11: =LOOKUP(MONTH(Andmesisestus!$H11),{1,1;2,1;3,1;4,2;5,2;6,2;7,3;8,3;9,3;10,4;11,4;12,4}) -> Kvartal 2 | J11: =YEAR(Andmesisestus!$B11) -> 2013 | K11: =MONTH(tblAndmed[[#This Row],[KUUPÄEV]]) -> 5 | L11: =SUMIFS(tblAndmed[SUMMA],tblAndmed[KUUPÄEV],">="&EOMONTH(tblAndmed[[#This Row],[KUUPÄEV]],-1)+1,tblAndmed[KUUPÄEV],"<="&EOMONTH(tblAndmed[[#This Row],[KUUPÄEV]],0)) -> 21,800.00 € | M11: =SUMIFS(tblAndmed[SUMMA],tblAndmed[KUUPÄEV],">="&DATE(YEAR(tblAndmed[KUUPÄEV]),1,1),tblAndmed[KUUPÄEV],"<="&DATE(YEAR(tblAndmed[KUUPÄEV]),12,31),tblAndmed[KVARTAL],tblAndmed[KVARTAL]) -> 50,800.00 € | N11: =SUMIFS(tblAndmed[SUMMA],tblAndmed[KUUPÄEV],">="&DATE(YEAR(tblAndmed[KUUPÄEV]),1,1),tblAndmed[KUUPÄEV],"<="&DATE(YEAR(tblAndmed[KUUPÄEV]),12,31)) -> 143,800.00 € | O11: =IFERROR(TREND($L$6:INDEX($L:$L,ROW(),1),$K$6:INDEX($K:$K,ROW(),1),IF(MONTH(tblAndmed[[#This Row],[KUUPÄEV]])=12,13,MONTH(tblAndmed[[#This Row],[KUUPÄEV]])+1)),"") -> 29,000.00 € | P11: =IFERROR(TREND($M$6:INDEX($M:$M,ROW(),1),$I$6:INDEX($I:$I,ROW(),1),IF(tblAndmed[KVARTAL]=4,5,tblAndmed[KVARTAL]+1)),"") -> 50,800.00 € | Q11: =IFERROR(TREND($N$6:INDEX($N:$N,ROW(),1),$J$6:INDEX($J:$J,ROW(),1),tblAndmed[AASTA]+1),"") -> 143,800.00 €
B12: =40705+(365*2) -> 2013-06-10 | C12: A. Datum Corporation | D12: 6,900.00 € | E12: 7,500.00 € | F12: 5,400.00 € | G12: =tblAndmed[[#This Row],[SUMMA]]-tblAndmed[KULU] -> 1,500.00 € | H12: =DATE(YEAR(Andmesisestus!$B12),MONTH(Andmesisestus!$B12),1) -> 2013-06-01 | I12: =LOOKUP(MONTH(Andmesisestus!$H12),{1,1;2,1;3,1;4,2;5,2;6,2;7,3;8,3;9,3;10,4;11,4;12,4}) -> Kvartal 2 | J12: =YEAR(Andmesisestus!$B12) -> 2013 | K12: =MONTH(tblAndmed[[#This Row],[KUUPÄEV]]) -> 6 | L12: =SUMIFS(tblAndmed[SUMMA],tblAndmed[KUUPÄEV],">="&EOMONTH(tblAndmed[[#This Row],[KUUPÄEV]],-1)+1,tblAndmed[KUUPÄEV],"<="&EOMONTH(tblAndmed[[#This Row],[KUUPÄEV]],0)) -> 14,400.00 € | M12: =SUMIFS(tblAndmed[SUMMA],tblAndmed[KUUPÄEV],">="&DATE(YEAR(tblAndmed[KUUPÄEV]),1,1),tblAndmed[KUUPÄEV],"<="&DATE(YEAR(tblAndmed[KUUPÄEV]),12,31),tblAndmed[KVARTAL],tblAndmed[KVARTAL]) -> 50,800.00 € | N12: =SUMIFS(tblAndmed[SUMMA],tblAndmed[KUUPÄEV],">="&DATE(YEAR(tblAndmed[KUUPÄEV]),1,1),tblAndmed[KUUPÄEV],"<="&DATE(YEAR(tblAndmed[KUUPÄEV]),12,31)) -> 143,800.00 € | O12: =IFERROR(TREND($L$6:INDEX($L:$L,ROW(),1),$K$6:INDEX($K:$K,ROW(),1),IF(MONTH(tblAndmed[[#This Row],[KUUPÄEV]])=12,13,MONTH(tblAndmed[[#This Row],[KUUPÄEV]])+1)),"") -> 21,600.00 € | P12: =IFERROR(TREND($M$6:INDEX($M:$M,ROW(),1),$I$6:INDEX($I:$I,ROW(),1),IF(tblAndmed[KVARTAL]=4,5,tblAndmed[KVARTAL]+1)),"") -> 50,800.00 € | Q12: =IFERROR(TREND($N$6:INDEX($N:$N,ROW(),1),$J$6:INDEX($J:$J,ROW(),1),tblAndmed[AASTA]+1),"") -> 143,800.00 €
B13: =40716+(365*2) -> 2013-06-21 | C13: Contoso Pharmaceuticals | D13: 7,500.00 € | E13: 7,200.00 € | F13: 6,500.00 € | G13: =tblAndmed[[#This Row],[SUMMA]]-tblAndmed[KULU] -> 1,000.00 € | H13: =DATE(YEAR(Andmesisestus!$B13),MONTH(Andmesisestus!$B13),1) -> 2013-06-01 | I13: =LOOKUP(MONTH(Andmesisestus!$H13),{1,1;2,1;3,1;4,2;5,2;6,2;7,3;8,3;9,3;10,4;11,4;12,4}) -> Kvartal 2 | J13: =YEAR(Andmesisestus!$B13) -> 2013 | K13: =MONTH(tblAndmed[[#This Row],[KUUPÄEV]]) -> 6 | L13: =SUMIFS(tblAndmed[SUMMA],tblAndmed[KUUPÄEV],">="&EOMONTH(tblAndmed[[#This Row],[KUUPÄEV]],-1)+1,tblAndmed[KUUPÄEV],"<="&EOMONTH(tblAndmed[[#This Row],[KUUPÄEV]],0)) -> 14,400.00 € | M13: =SUMIFS(tblAndmed[SUMMA],tblAndmed[KUUPÄEV],">="&DATE(YEAR(tblAndmed[KUUPÄEV]),1,1),tblAndmed[KUUPÄEV],"<="&DATE(YEAR(tblAndmed[KUUPÄEV]),12,31),tblAndmed[KVARTAL],tblAndmed[KVARTAL]) -> 50,800.00 € | N13: =SUMIFS(tblAndmed[SUMMA],tblAndmed[KUUPÄEV],">="&DATE(YEAR(tblAndmed[KUUPÄEV]),1,1),tblAndmed[KUUPÄEV],"<="&DATE(YEAR(tblAndmed[KUUPÄEV]),12,31)) -> 143,800.00 € | O13: =IFERROR(TREND($L$6:INDEX($L:$L,ROW(),1),$K$6:INDEX($K:$K,ROW(),1),IF(MONTH(tblAndmed[[#This Row],[KUUPÄEV]])=12,13,MONTH(tblAndmed[[#This Row],[KUUPÄEV]])+1)),"") -> 17,950.00 € | P13: =IFERROR(TREND($M$6:INDEX($M:$M,ROW(),1),$I$6:INDEX($I:$I,ROW(),1),IF(tblAndmed[KVARTAL]=4,5,tblAndmed[KVARTAL]+1)),"") -> 50,800.00 € | Q13: =IFERROR(TREND($N$6:INDEX($N:$N,ROW(),1),$J$6:INDEX($J:$J,ROW(),1),tblAndmed[AASTA]+1),"") -> 143,800.00 €
B14: =40731+(365*2) -> 2013-07-06 | C14: Consolidated Messenger | D14: 8,700.00 € | E14: 8,500.00 € | F14: 7,250.00 € | G14: =tblAndmed[[#This Row],[SUMMA]]-tblAndmed[KULU] -> 1,450.00 € | H14: =DATE(YEAR(Andmesisestus!$B14),MONTH(Andmesisestus!$B14),1) -> 2013-07-01 | I14: =LOOKUP(MONTH(Andmesisestus!$H14),{1,1;2,1;3,1;4,2;5,2;6,2;7,3;8,3;9,3;10,4;11,4;12,4}) -> Kvartal 3 | J14: =YEAR(Andmesisestus!$B14) -> 2013 | K14: =MONTH(tblAndmed[[#This Row],[KUUPÄEV]]) -> 7 | L14: =SUMIFS(tblAndmed[SUMMA],tblAndmed[KUUPÄEV],">="&EOMONTH(tblAndmed[[#This Row],[KUUPÄEV]],-1)+1,tblAndmed[KUUPÄEV],"<="&EOMONTH(tblAndmed[[#This Row],[KUUPÄEV]],0)) -> 8,700.00 € | M14: =SUMIFS(tblAndmed[SUMMA],tblAndmed[KUUPÄEV],">="&DATE(YEAR(tblAndmed[KUUPÄEV]),1,1),tblAndmed[KUUPÄEV],"<="&DATE(YEAR(tblAndmed[KUUPÄEV]),12,31),tblAndmed[KVARTAL],tblAndmed[KVARTAL]) -> 49,100.00 € | N14: =SUMIFS(tblAndmed[SUMMA],tblAndmed[KUUPÄEV],">="&DATE(YEAR(tblAndmed[KUUPÄEV]),1,1),tblAndmed[KUUPÄEV],"<="&DATE(YEAR(tblAndmed[KUUPÄEV]),12,31)) -> 143,800.00 € | O14: =IFERROR(TREND($L$6:INDEX($L:$L,ROW(),1),$K$6:INDEX($K:$K,ROW(),1),IF(MONTH(tblAndmed[[#This Row],[KUUPÄEV]])=12,13,MONTH(tblAndmed[[#This Row],[KUUPÄEV]])+1)),"") -> 10,776.47 € | P14: =IFERROR(TREND($M$6:INDEX($M:$M,ROW(),1),$I$6:INDEX($I:$I,ROW(),1),IF(tblAndmed[KVARTAL]=4,5,tblAndmed[KVARTAL]+1)),"") -> 47,400.00 € | Q14: =IFERROR(TREND($N$6:INDEX($N:$N,ROW(),1),$J$6:INDEX($J:$J,ROW(),1),tblAndmed[AASTA]+1),"") -> 143,800.00 €
B15: =40761+(365*2) -> 2013-08-05 | C15: Proseware, Inc. | D15: 8,500.00 € | E15: 8,300.00 € | F15: 7,100.00 € | G15: =tblAndmed[[#This Row],[SUMMA]]-tblAndmed[KULU] -> 1,400.00 € | H15: =DATE(YEAR(Andmesisestus!$B15),MONTH(Andmesisestus!$B15),1) -> 2013-08-01 | I15: =LOOKUP(MONTH(Andmesisestus!$H15),{1,1;2,1;3,1;4,2;5,2;6,2;7,3;8,3;9,3;10,4;11,4;12,4}) -> Kvartal 3 | J15: =YEAR(Andmesisestus!$B15) -> 2013 | K15: =MONTH(tblAndmed[[#This Row],[KUUPÄEV]]) -> 8 | L15: =SUMIFS(tblAndmed[SUMMA],tblAndmed[KUUPÄEV],">="&EOMONTH(tblAndmed[[#This Row],[KUUPÄEV]],-1)+1,tblAndmed[KUUPÄEV],"<="&EOMONTH(tblAndmed[[#This Row],[KUUPÄEV]],0)) -> 16,400.00 € | M15: =SUMIFS(tblAndmed[SUMMA],tblAndmed[KUUPÄEV],">="&DATE(YEAR(tblAndmed[KUUPÄEV]),1,1),tblAndmed[KUUPÄEV],"<="&DATE(YEAR(tblAndmed[KUUPÄEV]),12,31),tblAndmed[KVARTAL],tblAndmed[KVARTAL]) -> 49,100.00 € | N15: =SUMIFS(tblAndmed[SUMMA],tblAndmed[KUUPÄEV],">="&DATE(YEAR(tblAndmed[KUUPÄEV]),1,1),tblAndmed[KUUPÄEV],"<="&DATE(YEAR(tblAndmed[KUUPÄEV]),12,31)) -> 143,800.00 € | O15: =IFERROR(TREND($L$6:INDEX($L:$L,ROW(),1),$K$6:INDEX($K:$K,ROW(),1),IF(MONTH(tblAndmed[[#This Row],[KUUPÄEV]])=12,13,MONTH(tblAndmed[[#This Row],[KUUPÄEV]])+1)),"") -> 12,455.86 € | P15: =IFERROR(TREND($M$6:INDEX($M:$M,ROW(),1),$I$6:INDEX($I:$I,ROW(),1),IF(tblAndmed[KVARTAL]=4,5,tblAndmed[KVARTAL]+1)),"") -> 47,400.00 € | Q15: =IFERROR(TREND($N$6:INDEX($N:$N,ROW(),1),$J$6:INDEX($J:$J,ROW(),1),tblAndmed[AASTA]+1),"") -> 143,800.00 €
B16: =40775+(365*2) -> 2013-08-19 | C16: School of Fine Art | D16: 7,900.00 € | E16: 7,700.00 € | F16: 6,600.00 € | G16: =tblAndmed[[#This Row],[SUMMA]]-tblAndmed[KULU] -> 1,300.00 € | H16: =DATE(YEAR(Andmesisestus!$B16),MONTH(Andmesisestus!$B16),1) -> 2013-08-01 | I16: =LOOKUP(MONTH(Andmesisestus!$H16),{1,1;2,1;3,1;4,2;5,2;6,2;7,3;8,3;9,3;10,4;11,4;12,4}) -> Kvartal 3 | J16: =YEAR(Andmesisestus!$B16) -> 2013 | K16: =MONTH(tblAndmed[[#This Row],[KUUPÄEV]]) -> 8 | L16: =SUMIFS(tblAndmed[SUMMA],tblAndmed[KUUPÄEV],">="&EOMONTH(tblAndmed[[#This Row],[KUUPÄEV]],-1)+1,tblAndmed[KUUPÄEV],"<="&EOMONTH(tblAndmed[[#This Row],[KUUPÄEV]],0)) -> 16,400.00 € | M16: =SUMIFS(tblAndmed[SUMMA],tblAndmed[KUUPÄEV],">="&DATE(YEAR(tblAndmed[KUUPÄEV]),1,1),tblAndmed[KUUPÄEV],"<="&DATE(YEAR(tblAndmed[KUUPÄEV]),12,31),tblAndmed[KVARTAL],tblAndmed[KVARTAL]) -> 49,100.00 € | N16: =SUMIFS(tblAndmed[SUMMA],tblAndmed[KUUPÄEV],">="&DATE(YEAR(tblAndmed[KUUPÄEV]),1,1),tblAndmed[KUUPÄEV],"<="&DATE(YEAR(tblAndmed[KUUPÄEV]),12,31)) -> 143,800.00 € | O16: =IFERROR(TREND($L$6:INDEX($L:$L,ROW(),1),$K$6:INDEX($K:$K,ROW(),1),IF(MONTH(tblAndmed[[#This Row],[KUUPÄEV]])=12,13,MONTH(tblAndmed[[#This Row],[KUUPÄEV]])+1)),"") -> 13,667.57 € | P16: =IFERROR(TREND($M$6:INDEX($M:$M,ROW(),1),$I$6:INDEX($I:$I,ROW(),1),IF(tblAndmed[KVARTAL]=4,5,tblAndmed[KVARTAL]+1)),"") -> 47,400.00 € | Q16: =IFERROR(TREND($N$6:INDEX($N:$N,ROW(),1),$J$6:INDEX($J:$J,ROW(),1),tblAndmed[AASTA]+1),"") -> 143,800.00 €
B17: =40791+(365*2) -> 2013-09-04 | C17: Trey Research | D17: 9,100.00 € | E17: 8,900.00 € | F17: 7,900.00 € | G17: =tblAndmed[[#This Row],[SUMMA]]-tblAndmed[KULU] -> 1,200.00 € | H17: =DATE(YEAR(Andmesisestus!$B17),MONTH(Andmesisestus!$B17),1) -> 2013-09-01 | I17: =LOOKUP(MONTH(Andmesisestus!$H17),{1,1;2,1;3,1;4,2;5,2;6,2;7,3;8,3;9,3;10,4;11,4;12,4}) -> Kvartal 3 | J17: =YEAR(Andmesisestus!$B17) -> 2013 | K17: =MONTH(tblAndmed[[#This Row],[KUUPÄEV]]) -> 9 | L17: =SUMIFS(tblAndmed[SUMMA],tblAndmed[KUUPÄEV],">="&EOMONTH(tblAndmed[[#This Row],[KUUPÄEV]],-1)+1,tblAndmed[KUUPÄEV],"<="&EOMONTH(tblAndmed[[#This Row],[KUUPÄEV]],0)) -> 24,000.00 € | M17: =SUMIFS(tblAndmed[SUMMA],tblAndmed[KUUPÄEV],">="&DATE(YEAR(tblAndmed[KUUPÄEV]),1,1),tblAndmed[KUUPÄEV],"<="&DATE(YEAR(tblAndmed[KUUPÄEV]),12,31),tblAndmed[KVARTAL],tblAndmed[KVARTAL]) -> 49,100.00 € | N17: =SUMIFS(tblAndmed[SUMMA],tblAndmed[KUUPÄEV],">="&DATE(YEAR(tblAndmed[KUUPÄEV]),1,1),tblAndmed[KUUPÄEV],"<="&DATE(YEAR(tblAndmed[KUUPÄEV]),12,31)) -> 143,800.00 € | O17: =IFERROR(TREND($L$6:INDEX($L:$L,ROW(),1),$K$6:INDEX($K:$K,ROW(),1),IF(MONTH(tblAndmed[[#This Row],[KUUPÄEV]])=12,13,MONTH(tblAndmed[[#This Row],[KUUPÄEV]])+1)),"") -> 17,651.67 € | P17: =IFERROR(TREND($M$6:INDEX($M:$M,ROW(),1),$I$6:INDEX($I:$I,ROW(),1),IF(tblAndmed[KVARTAL]=4,5,tblAndmed[KVARTAL]+1)),"") -> 47,400.00 € | Q17: =IFERROR(TREND($N$6:INDEX($N:$N,ROW(),1),$J$6:INDEX($J:$J,ROW(),1),tblAndmed[AASTA]+1),"") -> 143,800.00 €
B18: =40807+(365*2) -> 2013-09-20 | C18: Contoso Pharmaceuticals | D18: 5,600.00 € | E18: 5,800.00 € | F18: 4,500.00 € | G18: =tblAndmed[[#This Row],[SUMMA]]-tblAndmed[KULU] -> 1,100.00 € | H18: =DATE(YEAR(Andmesisestus!$B18),MONTH(Andmesisestus!$B18),1) -> 2013-09-01 | I18: =LOOKUP(MONTH(Andmesisestus!$H18),{1,1;2,1;3,1;4,2;5,2;6,2;7,3;8,3;9,3;10,4;11,4;12,4}) -> Kvartal 3 | J18: =YEAR(Andmesisestus!$B18) -> 2013 | K18: =MONTH(tblAndmed[[#This Row],[KUUPÄEV]]) -> 9 | L18: =SUMIFS(tblAndmed[SUMMA],tblAndmed[KUUPÄEV],">="&EOMONTH(tblAndmed[[#This Row],[KUUPÄEV]],-1)+1,tblAndmed[KUUPÄEV],"<="&EOMONTH(tblAndmed[[#This Row],[KUUPÄEV]],0)) -> 24,000.00 € | M18: =SUMIFS(tblAndmed[SUMMA],tblAndmed[KUUPÄEV],">="&DATE(YEAR(tblAndmed[KUUPÄEV]),1,1),tblAndmed[KUUPÄEV],"<="&DATE(YEAR(tblAndmed[KUUPÄEV]),12,31),tblAndmed[KVARTAL],tblAndmed[KVARTAL]) -> 49,100.00 € | N18: =SUMIFS(tblAndmed[SUMMA],tblAndmed[KUUPÄEV],">="&DATE(YEAR(tblAndmed[KUUPÄEV]),1,1),tblAndmed[KUUPÄEV],"<="&DATE(YEAR(tblAndmed[KUUPÄEV]),12,31)) -> 143,800.00 € | O18: =IFERROR(TREND($L$6:INDEX($L:$L,ROW(),1),$K$6:INDEX($K:$K,ROW(),1),IF(MONTH(tblAndmed[[#This Row],[KUUPÄEV]])=12,13,MONTH(tblAndmed[[#This Row],[KUUPÄEV]])+1)),"") -> 19,877.91 € | P18: =IFERROR(TREND($M$6:INDEX($M:$M,ROW(),1),$I$6:INDEX($I:$I,ROW(),1),IF(tblAndmed[KVARTAL]=4,5,tblAndmed[KVARTAL]+1)),"") -> 47,400.00 € | Q18: =IFERROR(TREND($N$6:INDEX($N:$N,ROW(),1),$J$6:INDEX($J:$J,ROW(),1),tblAndmed[AASTA]+1),"") -> 143,800.00 €
B19: =40812+(365*2) -> 2013-09-25 | C19: Consolidated Messenger | D19: 9,300.00 € | E19: 9,100.00 € | F19: 7,500.00 € | G19: =tblAndmed[[#This Row],[SUMMA]]-tblAndmed[KULU] -> 1,800.00 € | H19: =DATE(YEAR(Andmesisestus!$B19),MONTH(Andmesisestus!$B19),1) -> 2013-09-01 | I19: =LOOKUP(MONTH(Andmesisestus!$H19),{1,1;2,1;3,1;4,2;5,2;6,2;7,3;8,3;9,3;10,4;11,4;12,4}) -> Kvartal 3 | J19: =YEAR(Andmesisestus!$B19) -> 2013 | K19: =MONTH(tblAndmed[[#This Row],[KUUPÄEV]]) -> 9 | L19: =SUMIFS(tblAndmed[SUMMA],tblAndmed[KUUPÄEV],">="&EOMONTH(tblAndmed[[#This Row],[KUUPÄEV]],-1)+1,tblAndmed[KUUPÄEV],"<="&EOMONTH(tblAndmed[[#This Row],[KUUPÄEV]],0)) -> 24,000.00 € | M19: =SUMIFS(tblAndmed[SUMMA],tblAndmed[KUUPÄEV],">="&DATE(YEAR(tblAndmed[KUUPÄEV]),1,1),tblAndmed[KUUPÄEV],"<="&DATE(YEAR(tblAndmed[KUUPÄEV]),12,31),tblAndmed[KVARTAL],tblAndmed[KVARTAL]) -> 49,100.00 € | N19: =SUMIFS(tblAndmed[SUMMA],tblAndmed[KUUPÄEV],">="&DATE(YEAR(tblAndmed[KUUPÄEV]),1,1),tblAndmed[KUUPÄEV],"<="&DATE(YEAR(tblAndmed[KUUPÄEV]),12,31)) -> 143,800.00 € | O19: =IFERROR(TREND($L$6:INDEX($L:$L,ROW(),1),$K$6:INDEX($K:$K,ROW(),1),IF(MONTH(tblAndmed[[#This Row],[KUUPÄEV]])=12,13,MONTH(tblAndmed[[#This Row],[KUUPÄEV]])+1)),"") -> 21,138.05 € | P19: =IFERROR(TREND($M$6:INDEX($M:$M,ROW(),1),$I$6:INDEX($I:$I,ROW(),1),IF(tblAndmed[KVARTAL]=4,5,tblAndmed[KVARTAL]+1)),"") -> 47,400.00 € | Q19: =IFERROR(TREND($N$6:INDEX($N:$N,ROW(),1),$J$6:INDEX($J:$J,ROW(),1),tblAndmed[AASTA]+1),"") -> 143,800.00 €
B20: =40832+(365*2) -> 2013-10-15 | C20: Proseware, Inc. | D20: 8,800.00 € | E20: 9,350.00 € | F20: 7,100.00 € | G20: =tblAndmed[[#This Row],[SUMMA]]-tblAndmed[KULU] -> 1,700.00 € | H20: =DATE(YEAR(Andmesisestus!$B20),MONTH(Andmesisestus!$B20),1) -> 2013-10-01 | I20: =LOOKUP(MONTH(Andmesisestus!$H20),{1,1;2,1;3,1;4,2;5,2;6,2;7,3;8,3;9,3;10,4;11,4;12,4}) -> Kvartal 4 | J20: =YEAR(Andmesisestus!$B20) -> 2013 | K20: =MONTH(tblAndmed[[#This Row],[KUUPÄEV]]) -> 10 | L20: =SUMIFS(tblAndmed[SUMMA],tblAndmed[KUUPÄEV],">="&EOMONTH(tblAndmed[[#This Row],[KUUPÄEV]],-1)+1,tblAndmed[KUUPÄEV],"<="&EOMONTH(tblAndmed[[#This Row],[KUUPÄEV]],0)) -> 8,800.00 € | M20: =SUMIFS(tblAndmed[SUMMA],tblAndmed[KUUPÄEV],">="&DATE(YEAR(tblAndmed[KUUPÄEV]),1,1),tblAndmed[KUUPÄEV],"<="&DATE(YEAR(tblAndmed[KUUPÄEV]),12,31),tblAndmed[KVARTAL],tblAndmed[KVARTAL]) -> 43,900.00 € | N20: =SUMIFS(tblAndmed[SUMMA],tblAndmed[KUUPÄEV],">="&DATE(YEAR(tblAndmed[KUUPÄEV]),1,1),tblAndmed[KUUPÄEV],"<="&DATE(YEAR(tblAndmed[KUUPÄEV]),12,31)) -> 143,800.00 € | O20: =IFERROR(TREND($L$6:INDEX($L:$L,ROW(),1),$K$6:INDEX($K:$K,ROW(),1),IF(MONTH(tblAndmed[[#This Row],[KUUPÄEV]])=12,13,MONTH(tblAndmed[[#This Row],[KUUPÄEV]])+1)),"") -> 17,951.74 € | P20: =IFERROR(TREND($M$6:INDEX($M:$M,ROW(),1),$I$6:INDEX($I:$I,ROW(),1),IF(tblAndmed[KVARTAL]=4,5,tblAndmed[KVARTAL]+1)),"") -> 43,258.14 € | Q20: =IFERROR(TREND($N$6:INDEX($N:$N,ROW(),1),$J$6:INDEX($J:$J,ROW(),1),tblAndmed[AASTA]+1),"") -> 143,800.00 €
B21: =40853+(365*2) -> 2013-11-05 | C21: School of Fine Art | D21: 9,100.00 € | E21: 9,200.00 € | F21: 7,850.00 € | G21: =tblAndmed[[#This Row],[SUMMA]]-tblAndmed[KULU] -> 1,250.00 € | H21: =DATE(YEAR(Andmesisestus!$B21),MONTH(Andmesisestus!$B21),1) -> 2013-11-01 | I21: =LOOKUP(MONTH(Andmesisestus!$H21),{1,1;2,1;3,1;4,2;5,2;6,2;7,3;8,3;9,3;10,4;11,4;12,4}) -> Kvartal 4 | J21: =YEAR(Andmesisestus!$B21) -> 2013 | K21: =MONTH(tblAndmed[[#This Row],[KUUPÄEV]]) -> 11 | L21: =SUMIFS(tblAndmed[SUMMA],tblAndmed[KUUPÄEV],">="&EOMONTH(tblAndmed[[#This Row],[KUUPÄEV]],-1)+1,tblAndmed[KUUPÄEV],"<="&EOMONTH(tblAndmed[[#This Row],[KUUPÄEV]],0)) -> 25,600.00 € | M21: =SUMIFS(tblAndmed[SUMMA],tblAndmed[KUUPÄEV],">="&DATE(YEAR(tblAndmed[KUUPÄEV]),1,1),tblAndmed[KUUPÄEV],"<="&DATE(YEAR(tblAndmed[KUUPÄEV]),12,31),tblAndmed[KVARTAL],tblAndmed[KVARTAL]) -> 43,900.00 € | N21: =SUMIFS(tblAndmed[SUMMA],tblAndmed[KUUPÄEV],">="&DATE(YEAR(tblAndmed[KUUPÄEV]),1,1),tblAndmed[KUUPÄEV],"<="&DATE(YEAR(tblAndmed[KUUPÄEV]),12,31)) -> 143,800.00 € | O21: =IFERROR(TREND($L$6:INDEX($L:$L,ROW(),1),$K$6:INDEX($K:$K,ROW(),1),IF(MONTH(tblAndmed[[#This Row],[KUUPÄEV]])=12,13,MONTH(tblAndmed[[#This Row],[KUUPÄEV]])+1)),"") -> 20,556.13 € | P21: =IFERROR(TREND($M$6:INDEX($M:$M,ROW(),1),$I$6:INDEX($I:$I,ROW(),1),IF(tblAndmed[KVARTAL]=4,5,tblAndmed[KVARTAL]+1)),"") -> 42,312.90 € | Q21: =IFERROR(TREND($N$6:INDEX($N:$N,ROW(),1),$J$6:INDEX($J:$J,ROW(),1),tblAndmed[AASTA]+1),"") -> 143,800.00 €
B22: =40874+(365*2) -> 2013-11-26 | C22: Trey Research | D22: 9,000.00 € | E22: 10,000.00 € | F22: 7,575.00 € | G22: =tblAndmed[[#This Row],[SUMMA]]-tblAndmed[KULU] -> 1,425.00 € | H22: =DATE(YEAR(Andmesisestus!$B22),MONTH(Andmesisestus!$B22),1) -> 2013-11-01 | I22: =LOOKUP(MONTH(Andmesisestus!$H22),{1,1;2,1;3,1;4,2;5,2;6,2;7,3;8,3;9,3;10,4;11,4;12,4}) -> Kvartal 4 | J22: =YEAR(Andmesisestus!$B22) -> 2013 | K22: =MONTH(tblAndmed[[#This Row],[KUUPÄEV]]) -> 11 | L22: =SUMIFS(tblAndmed[SUMMA],tblAndmed[KUUPÄEV],">="&EOMONTH(tblAndmed[[#This Row],[KUUPÄEV]],-1)+1,tblAndmed[KUUPÄEV],"<="&EOMONTH(tblAndmed[[#This Row],[KUUPÄEV]],0)) -> 25,600.00 € | M22: =SUMIFS(tblAndmed[SUMMA],tblAndmed[KUUPÄEV],">="&DATE(YEAR(tblAndmed[KUUPÄEV]),1,1),tblAndmed[KUUPÄEV],"<="&DATE(YEAR(tblAndmed[KUUPÄEV]),12,31),tblAndmed[KVARTAL],tblAndmed[KVARTAL]) -> 43,900.00 € | N22: =SUMIFS(tblAndmed[SUMMA],tblAndmed[KUUPÄEV],">="&DATE(YEAR(tblAndmed[KUUPÄEV]),1,1),tblAndmed[KUUPÄEV],"<="&DATE(YEAR(tblAndmed[KUUPÄEV]),12,31)) -> 143,800.00 € | O22: =IFERROR(TREND($L$6:INDEX($L:$L,ROW(),1),$K$6:INDEX($K:$K,ROW(),1),IF(MONTH(tblAndmed[[#This Row],[KUUPÄEV]])=12,13,MONTH(tblAndmed[[#This Row],[KUUPÄEV]])+1)),"") -> 21,997.14 € | P22: =IFERROR(TREND($M$6:INDEX($M:$M,ROW(),1),$I$6:INDEX($I:$I,ROW(),1),IF(tblAndmed[KVARTAL]=4,5,tblAndmed[KVARTAL]+1)),"") -> 41,811.11 € | Q22: =IFERROR(TREND($N$6:INDEX($N:$N,ROW(),1),$J$6:INDEX($J:$J,ROW(),1),tblAndmed[AASTA]+1),"") -> 143,800.00 €
B23: =40878+(365*2) -> 2013-11-30 | C23: Trey Research | D23: 7,500.00 € | E23: 8,000.00 € | F23: 5,850.00 € | G23: =tblAndmed[[#This Row],[SUMMA]]-tblAndmed[KULU] -> 1,650.00 € | H23: =DATE(YEAR(Andmesisestus!$B23),MONTH(Andmesisestus!$B23),1) -> 2013-11-01 | I23: =LOOKUP(MONTH(Andmesisestus!$H23),{1,1;2,1;3,1;4,2;5,2;6,2;7,3;8,3;9,3;10,4;11,4;12,4}) -> Kvartal 4 | J23: =YEAR(Andmesisestus!$B23) -> 2013 | K23: =MONTH(tblAndmed[[#This Row],[KUUPÄEV]]) -> 11 | L23: =SUMIFS(tblAndmed[SUMMA],tblAndmed[KUUPÄEV],">="&EOMONTH(tblAndmed[[#This Row],[KUUPÄEV]],-1)+1,tblAndmed[KUUPÄEV],"<="&EOMONTH(tblAndmed[[#This Row],[KUUPÄEV]],0)) -> 25,600.00 € | M23: =SUMIFS(tblAndmed[SUMMA],tblAndmed[KUUPÄEV],">="&DATE(YEAR(tblAndmed[KUUPÄEV]),1,1),tblAndmed[KUUPÄEV],"<="&DATE(YEAR(tblAndmed[KUUPÄEV]),12,31),tblAndmed[KVARTAL],tblAndmed[KVARTAL]) -> 43,900.00 € | N23: =SUMIFS(tblAndmed[SUMMA],tblAndmed[KUUPÄEV],">="&DATE(YEAR(tblAndmed[KUUPÄEV]),1,1),tblAndmed[KUUPÄEV],"<="&DATE(YEAR(tblAndmed[KUUPÄEV]),12,31)) -> 143,800.00 € | O23: =IFERROR(TREND($L$6:INDEX($L:$L,ROW(),1),$K$6:INDEX($K:$K,ROW(),1),IF(MONTH(tblAndmed[[#This Row],[KUUPÄEV]])=12,13,MONTH(tblAndmed[[#This Row],[KUUPÄEV]])+1)),"") -> 22,917.63 € | P23: =IFERROR(TREND($M$6:INDEX($M:$M,ROW(),1),$I$6:INDEX($I:$I,ROW(),1),IF(tblAndmed[KVARTAL]=4,5,tblAndmed[KVARTAL]+1)),"") -> 41,500.00 € | Q23: =IFERROR(TREND($N$6:INDEX($N:$N,ROW(),1),$J$6:INDEX($J:$J,ROW(),1),tblAndmed[AASTA]+1),"") -> 143,800.00 €
B24: =40889+(365*2) -> 2013-12-11 | C24: Contoso Pharmaceuticals | D24: 9,500.00 € | E24: 9,200.00 € | F24: 8,500.00 € | G24: =tblAndmed[[#This Row],[SUMMA]]-tblAndmed[KULU] -> 1,000.00 € | H24: =DATE(YEAR(Andmesisestus!$B24),MONTH(Andmesisestus!$B24),1) -> 2013-12-01 | I24: =LOOKUP(MONTH(Andmesisestus!$H24),{1,1;2,1;3,1;4,2;5,2;6,2;7,3;8,3;9,3;10,4;11,4;12,4}) -> Kvartal 4 | J24: =YEAR(Andmesisestus!$B24) -> 2013 | K24: =MONTH(tblAndmed[[#This Row],[KUUPÄEV]]) -> 12 | L24: =SUMIFS(tblAndmed[SUMMA],tblAndmed[KUUPÄEV],">="&EOMONTH(tblAndmed[[#This Row],[KUUPÄEV]],-1)+1,tblAndmed[KUUPÄEV],"<="&EOMONTH(tblAndmed[[#This Row],[KUUPÄEV]],0)) -> 9,500.00 € | M24: =SUMIFS(tblAndmed[SUMMA],tblAndmed[KUUPÄEV],">="&DATE(YEAR(tblAndmed[KUUPÄEV]),1,1),tblAndmed[KUUPÄEV],"<="&DATE(YEAR(tblAndmed[KUUPÄEV]),12,31),tblAndmed[KVARTAL],tblAndmed[KVARTAL]) -> 43,900.00 € | N24: =SUMIFS(tblAndmed[SUMMA],tblAndmed[KUUPÄEV],">="&DATE(YEAR(tblAndmed[KUUPÄEV]),1,1),tblAndmed[KUUPÄEV],"<="&DATE(YEAR(tblAndmed[KUUPÄEV]),12,31)) -> 143,800.00 € | O24: =IFERROR(TREND($L$6:INDEX($L:$L,ROW(),1),$K$6:INDEX($K:$K,ROW(),1),IF(MONTH(tblAndmed[[#This Row],[KUUPÄEV]])=12,13,MONTH(tblAndmed[[#This Row],[KUUPÄEV]])+1)),"") -> 20,504.31 € | P24: =IFERROR(TREND($M$6:INDEX($M:$M,ROW(),1),$I$6:INDEX($I:$I,ROW(),1),IF(tblAndmed[KVARTAL]=4,5,tblAndmed[KVARTAL]+1)),"") -> 41,288.24 € | Q24: =IFERROR(TREND($N$6:INDEX($N:$N,ROW(),1),$J$6:INDEX($J:$J,ROW(),1),tblAndmed[AASTA]+1),"") -> 143,800.00 €

Sheet Müügiaruanne
B2: KUUS MÜÜGIARUANNE
B5: AASTA | C5: KVARTAL | D5: KUU | E5: ETTEVÕTE | F5: KOGU MÜÜK
B6: 2013 | C6: Kvartal 2 | D6: 2013-04-01 | E6: A. Datum Corporation | F6: 6,400.00 €
E7: Contoso Pharmaceuticals | F7: 8,200.00 €
D8: 2013-05-01 | E8: Consolidated Messenger | F8: 4,400.00 €
E9: Proseware, Inc. | F9: 5,400.00 €
E10: School of Fine Art | F10: 5,800.00 €
E11: Trey Research | F11: 6,200.00 €
D12: 2013-06-01 | E12: A. Datum Corporation | F12: 6,900.00 €
E13: Contoso Pharmaceuticals | F13: 7,500.00 €
C14: Kvartal 2 Kokku | F14: 50,800.00 €
C15: Kvartal 3 | D15: 2013-07-01 | E15: Consolidated Messenger | F15: 8,700.00 €
D16: 2013-08-01 | E16: Proseware, Inc. | F16: 8,500.00 €
E17: School of Fine Art | F17: 7,900.00 €
D18: 2013-09-01 | E18: Consolidated Messenger | F18: 9,300.00 €
E19: Contoso Pharmaceuticals | F19: 5,600.00 €
E20: Trey Research | F20: 9,100.00 €
C21: Kvartal 3 Kokku | F21: 49,100.00 €
C22: Kvartal 4 | D22: 2013-10-01 | E22: Proseware, Inc. | F22: 8,800.00 €
D23: 2013-11-01 | E23: School of Fine Art | F23: 9,100.00 €
E24: Trey Research | F24: 16,500.00 €
D25: 2013-12-01 | E25: Contoso Pharmaceuticals | F25: 9,500.00 €
C26: Kvartal 4 Kokku | F26: 43,900.00 €
B27: 2013 Kokku | F27: 143,800.00 €
B28: Üldkokkuvõte | F28: 143,800.00 €

Sheet Müügiprognoos
B2: KUUS MÜÜGIPROGNOOS
B3: ="TÄNANE KUUPÄEV: "&UPPER(TEXT(TODAY(),"d mmmm yyyy")) -> TÄNANE KUUPÄEV: 17 JUULI 2013 | D3: =--TRIM(RIGHT(B3,LEN(B3)-FIND(":",B3))) -> 2013-07-17
B5: SELLEL KUUL | C5: TEGELIK | D5: PLAANITUD | E5: DISPERSIOON | F5: % | G5: AASTA ALGUSEST TÄNASENI TEGELIK | H5: AASTA ALGUSEST TÄNASENI PLAAN | I5: AASTA ALGUSEST TÄNASENI DISPERSIOON | J5: Aasta algusest tänaseni %
B6: Hulk | C6: =COUNTIF(Andmesisestus!$B$6:$B$24,">="&DATE(fAasta,MONTH(fKuupäev),1))-COUNTIF(Andmesisestus!$B$6:$B$24,">"&EOMONTH(fKuupäev,0)) -> 9 | G6: =COUNTIF(tblAndmed[KUUPÄEV],"<="&EOMONTH(fKuupäev,0)) -> 9
B7: Müük | C7: =SUMIF(tblAndmed[KUUPÄEV],">="&DATE(fAasta,MONTH(fKuupäev),1),tblAndmed[SUMMA])-SUMIF(tblAndmed[KUUPÄEV],">"&EOMONTH(fKuupäev,0),tblAndmed[SUMMA]) -> 59,500.00 € | D7: =SUMIF(Andmesisestus!$B$6:$B$24,">="&DATE(fAasta,MONTH(fKuupäev),1),Andmesisestus!$E$6:$E$24)-SUMIF(Andmesisestus!$B$6:$B$24,">"&EOMONTH(fKuupäev,0),Andmesisestus!$E$6:$E$24) -> 59,100.00 € | E7: =D7-C7 -> -400.00 € | F7: =IFERROR(D7/C7,"-") -> 99.33% | G7: =SUMIF(tblAndmed[KUUPÄEV],"<="&EOMONTH(fKuupäev,0),tblAndmed[SUMMA]) -> 59,500.00 € | H7: =SUMIF(tblAndmed[KUUPÄEV],"<="&EOMONTH(fKuupäev,0),tblAndmed[PLAANITUD]) -> 59,100.00 € | I7: =H7-G7 -> -400.00 € | J7: =IFERROR(H7/G7,"") -> 99.33%
B8: Tulud | C8: =(SUMIF(tblAndmed[KUUPÄEV],">="&DATE(fAasta,MONTH(fKuupäev),1),tblAndmed[SUMMA])-SUMIF(tblAndmed[KUUPÄEV],">"&EOMONTH(fKuupäev,0),tblAndmed[SUMMA]))-(SUMIF(tblAndmed[KUUPÄEV],">="&DATE(fAasta,MONTH(fKuupäev),1),tblAndmed[KULU])-SUMIF(tblAndmed[KUUPÄEV],">"&EOMONTH(fKuupäev,0),tblAndmed[KULU])) -> 13,400.00 € | D8: =(SUMIF(Andmesisestus!$B$6:$B$24,">="&DATE(fAasta,MONTH(fKuupäev),1),Andmesisestus!$E$6:$E$24)-SUMIF(Andmesisestus!$B$6:$B$24,">"&EOMONTH(fKuupäev,0),Andmesisestus!$E$6:$E$24))-(SUMIF(Andmesisestus!$B$6:$B$24,">="&DATE(fAasta,MONTH(fKuupäev),1),Andmesisestus!$F$6:$F$24)-SUMIF(Andmesisestus!$B$6:$B$24,">"&EOMONTH(fKuupäev,0),Andmesisestus!$F$6:$F$24)) -> 13,000.00 € | E8: =D8-C8 -> -400.00 € | F8: =IFERROR(D8/C8,"-") -> 97.01% | G8: =SUMIF(Andmesisestus!$B$6:$B$24,"<="&EOMONTH(fKuupäev,0),Andmesisestus!$F$6:$F$24) -> 46,100.00 € | H8: =SUMIF(tblAndmed[KUUPÄEV],"<="&EOMONTH(fKuupäev,0),tblAndmed[SUMMA]) -> 59,500.00 € | I8: =H8-G8 -> 13,400.00 € | J8: =IFERROR(H8/G8,"") -> 129.07%
B9: Kasum | C9: =IFERROR(C8/C7,"-") -> 22.52% | D9: =IFERROR(D8/D7,"-") -> 22.00% | F9: =IFERROR(F8/F7,"-") -> 97.67% | G9: =IFERROR(G8/G7,"") -> 77.48% | H9: =IFERROR(H8/H7,"") -> 100.68% | J9: =IFERROR(J8/J7,"") -> 129.94%
B10: Tellimuste arv | C10: =COUNTIF(tblAndmed[KUUPÄEV],">="&DATE(fAasta,MONTH(fKuupäev),1))-COUNTIF(tblAndmed[KUUPÄEV],">"&EOMONTH(fKuupäev,0)) -> 9 | G10: =COUNTIF(tblAndmed[KUUPÄEV],">"&EOMONTH(fKuupäev,0)) -> 10
B11: Keskmine tellimuse väärtus | C11: =IFERROR(C7/C10,"-") -> 6,611.11 € | G11: =IFERROR(G7/G10,"-") -> 5,950.00 €
B13: PROGNOOS | D13: JÄRGMINE KUU | F13: JÄRGMINE KVARTAL | I13: JÄRGMINE AASTA
B14: Müük | D14: =TREND(tblAndmed[[KUU ]],tblAndmed[KUU NR (PEIDA)],IF(MONTH(fKuupäev)=12,13,MONTH(fKuupäev)+1)) -> 18,750.30 € | F14: =TREND(tblAndmed[[KVARTAL ]],tblAndmed[KUU NR (PEIDA)],IF(MONTH(fKuupäev)=12,13,MONTH(fKuupäev)+1)) -> 48,082.06 € | I14: =TREND(tblAndmed[[AASTAS ]],tblAndmed[KUU NR (PEIDA)],IF(MONTH(fKuupäev)=12,13,MONTH(fKuupäev)+1)) -> 143,800.00 €
B16: MÜÜGIAJALUGU
B30: KUUPROGNOOS | F30: KVARTALIPROGNOOS
B38: AASTAPROGNOOS | F38: TULUVOOG
